Cogmind - Beta 13 @@@ ROGUE MODE // 2024.03.12 @ 14:42:48 Player: Puck Result: Destroyed by PA-3EL(R) with Subdweller Laser Performance ------------- Evolutions (0) 0 Regions Visited (2) 400 Robots Destroyed (22) 110 Value Destroyed (376) 376 Prototype IDs (2) 40 Alien Tech Used (0) 0 Bonus (0) 0 TOTAL SCORE: 926 Bonus ------- None Cogmind --------- Core Integrity 0/250 Matter 117/300 Energy 100/100 System Corruption 0% Temperature Cool (6) Movement Treading (160) Location -10/Subcaves Parts ------- > --- POWER (1) -------- (None) > --- PROPULSION (2) --- Light Treads > --- UTILITY (2) ------ Medium Storage Unit > --- WEAPON (2) ------- Assault Rifle Hammer > --- INVENTORY (10) --- Light Ion Engine Large Battery (200) High-capacity Matter Pod (0) Sensor Array Signal Interpreter Peak State ------------ > --- POWER ------------ Ion Engine > --- PROPULSION ------- Wheel Compact Wheel > --- UTILITY ---------- Heat Sink Medium Storage Unit > --- WEAPON ----------- Light Assault Rifle Makeshift Shrapnel Gun > --- INVENTORY -------- Light Ion Engine Light Treads Light Treads Large Battery High-capacity Matter Pod Sensor Array Signal Interpreter Assault Rifle Assault Rifle Hammer [Rating: 11] Favorites ----------- Power Ion Engine Engine Ion Engine Propulsion Light Treads Treads Light Treads Leg Aluminum Leg Wheel Wheel Utility Medium Storage Unit Device Heat Sink Storage Medium Storage Unit Weapon Assault Rifle Energy Gun EM Pulse Gun Ballistic Gun Assault Rifle Impact Weapon Hammer Build | -11 -10 -10 ------- Run | Yrd Mat Sub Slots Evolved . | . . . Power . | . . . Propulsion . | . . . Utility . | . . . Weapon . | . . . Parts Attached 17 | 2 7 8 Power 1 | . 1 . Engine 1 | . 1 . Core . | . . . Reactor . | . . . Propulsion 6 | 2 2 2 Treads 4 | 2 . 2 Leg . | . . . Wheel 2 | . 2 . Hover . | . . . Flight . | . . . Utility 2 | . 2 . Device 1 | . 1 . Storage 1 | . 1 . Processor . | . . . Hackware . | . . . Protection . | . . . Artifact . | . . . Weapon 8 | . 2 6 Energy Gun . | . . . Energy Cannon . | . . . Ballistic Gun 6 | . 2 4 Ballistic Cannon . | . . . Launcher . | . . . Special Weapon . | . . . Impact Weapon 2 | . . 2 Slashing Weapon . | . . . Piercing Weapon . | . . . Special Melee Weapon . | . . . Unidentified Prototypes . | . . . Parts Lost 8 | . . 8 Power 1 | . . 1 Propulsion 3 | . . 3 Utility 1 | . . 1 Weapon 3 | . . 3 Highest Loss Streak 5 | . . 5 To Critical Strikes . | . . . Average Slot Usage (%) 94 | . 95 85 Engine 13 | . 14 13 Treads 16 | . 17 13 Wheel 11 | . 10 12 Device 9 | . 9 6 Storage 14 | . 14 14 Ballistic Gun 26 | . 27 20 Naked Turns . | . . . Heaviest Build 20 | 14 20 20 Greatest Support 40 | 40 40 26 Greatest Overweight (x) . | . . . Average Overweight (x) . | . . . Largest Inventory Capacity 10 | 8 10 10 Average Capacity 9 | 8 9 10 Most Carried 10 | 6 10 10 Average Carried 8 | 6 8 7 Final Capacity 10 | 8 10 10 Final Carried 10 | 6 10 5 Class Distribution -------------------- 100% | Mutant Dominant Class ---------------- Mutant | -10/Materials Mutant | -10/Subcaves Resources | -11 -10 -10 ----------- Run | Yrd Mat Sub Matter Collected 665 | 200 465 . Remotely . | . . . Salvage Created 569 | . 548 21 Parts 52 | . 49 3 Haulers Intercepted 2 | . 2 . Recyclers Shooed . | . . . Parts Field Recycled . | . . . Retrieved Matter . | . . . Parts Self-Destructed 5 | . . 5 Prevented . | . . . Kills | -11 -10 -10 ------- Run | Yrd Mat Sub Combat Hostiles Destroyed 16 | . 15 1 Guns 16 | . 15 1 Classes Destroyed 7 | . 6 1 Worker 1 | . 1 . Builder 1 | . 1 . Hauler 2 | . 2 . Watcher 2 | . 2 . Swarmer 9 | . 9 . Grunt 6 | . 6 . Subdweller 1 | . . 1 Best Kill Streak 5 | . 5 1 Combat Bots Only 3 | . 3 1 Max Kills in Single Turn 1 | . 1 1 Gunslinging . | . . . Exploded . | . . . Melee . | . . . Uniques/NPCs Destroyed . | . . . Combat | -11 -10 -10 -------- Run | Yrd Mat Sub Hostile Shots Fired 128 | . 82 46 Missed 32 | . 18 14 Damage Taken 1223 | . 571 652 Core 254 | . 154 100 Absorbed by Shields . | . . . Core Remaining (%) 100 | 100 . . Volleys Fired 96 | . 68 28 Largest 2 | . 2 2 Hottest 44 | . 40 44 Shots Fired 182 | . 136 46 Gun 182 | . 136 46 Cannon . | . . . Launcher . | . . . Special . | . . . Kinetic 182 | . 136 46 Thermal . | . . . Explosive . | . . . Electromagnetic . | . . . Robot Hit Streak 54 | . 11 54 Robot Miss Streak 4 | . 4 . Penetration Max . | . . . Secondary Targets 1 | . . 1 Max Gunslinging Chain 1 | . . 1 Shots Hit Robots 125 | . 76 49 Core Hits 33 | . 28 5 Critical Kills . | . . . Critical Parts Destroyed 1 | . 1 . Critical Strikes 2 | . 1 1 Destroy 2 | . 1 1 Melee Attacks 14 | . . 14 Impact 14 | . . 14 Slashing . | . . . Piercing . | . . . Sneak Attacks 1 | . . 1 Combat Hostiles 1 | . . 1 Follow-up Attacks . | . . . Damage Inflicted 1302 | . 992 310 Guns 1140 | . 992 148 Cannons . | . . . Explosions . | . . . Melee 162 | . . 162 Ramming . | . . . Kinetic 1140 | . 992 148 Thermal . | . . . Explosive . | . . . Electromagnetic . | . . . Impact 162 | . . 162 Slashing . | . . . Piercing . | . . . Highest Corruption . | . . . Average Corruption . | . . . Corruption Purged . | . . . Corruption Blocked . | . . . Overload Shots . | . . . Overflow Damage 9 | . . 9 Projectiles . | . . . Explosions . | . . . Melee 9 | . . 9 Knockbacks 1 | . . 1 Impact 1 | . . 1 Kinetic . | . . . Secondary . | . . . Self-Inflicted Damage . | . . . Shots . | . . . Rammed . | . . . Targets Rammed . | . . . Kicked . | . . . Crushed . | . . . Highest Temperature 5 | . 5 . Average Temperature 4 | . 4 . Received Heat Transfer 342 | . 150 192 Siege Activations . | . . . Robots Corrupted . | . . . Combat Hostiles . | . . . Parts Fried . | . . . Impact Corruptions 1 | . . 1 Robots Melted . | . . . Combat Hostiles . | . . . Parts Melted . | . . . Heat Transferred . | . . . Parts Sabotaged . | . . . Parts Stolen . | . . . Parts Stripped . | . . . Power Chain Reactions . | . . . Alert | -11 -10 -10 ------- Run | Yrd Mat Sub Peak Influence 280 | . 280 . Initial . | . . . Average 133 | . 133 . Maximum Alert Level 1 | . 1 . Low Security (%) 79 | 100 79 . Level 1 20 | . 20 . Level 2 . | . . . Level 3 . | . . . Level 4 . | . . . Level 5 . | . . . High Security . | . . . Max Security . | . . . Squads Dispatched 4 | . 4 . Investigation 1 | . 1 . Extermination . | . . . Reinforcement 3 | . 3 . Assault . | . . . Garrison . | . . . Intercept . | . . . Searches Triggered . | . . . Construction Impeded . | . . . Haulers Reinforced . | . . . Active Scanning Responses . | . . . Cargo Convoy Interrupts . | . . . Stealth | -11 -10 -10 --------- Run | Yrd Mat Sub Distress Signals 2 | . 2 . Communications Jammed . | . . . Distress Signals . | . . . Times Spotted 34 | . 29 5 Peak Tracking Total 4 | . 4 3 Tactical Retreats 6 | . 3 3 Traps | -11 -10 -10 ------- Run | Yrd Mat Sub Traps Triggered 1 | . 1 . Indirectly . | . . . Trap Hack Attempts . | . . . Triggered . | . . . Disarmed . | . . . Reprogrammed . | . . . Reused . | . . . Traps Extracted . | . . . Installed . | . . . Triggered . | . . . Machines | -11 -10 -10 ---------- Run | Yrd Mat Sub Machines Disabled . | . . . Max in Single Turn . | . . . Machines Repaired . | . . . Machines Dismantled . | . . . Machines Sabotaged . | . . . Overloaded Fab Kills . | . . . Hacking | -11 -10 -10 --------- Run | Yrd Mat Sub Machines Accessed 6 | . 6 . Terminals 5 | . 5 . Fabricators . | . . . Repair Stations . | . . . Recycling Units 1 | . 1 . Scanalyzers . | . . . Garrison Access . | . . . Total Hacks 14 | . 14 . Successful 7 | . 7 . Failed 7 | . 7 . Catastrophic . | . . . Database Lockouts . | . . . Manual 7 | . 7 . Terminals 12 | . 12 . Fabricators . | . . . Repair Stations . | . . . Recycling Units 2 | . 2 . Scanalyzers . | . . . Garrison Access . | . . . Terminal Hacks 6 | . 6 . Robot Analysis 2 | . 2 . Prototype ID Bank 1 | . 1 . Branch Access Points 1 | . 1 . Alert Level 1 | . 1 . Hauler Manifests 1 | . 1 . Fabricator Hacks . | . . . Repair Station Hacks . | . . . Recycling Unit Hacks . | . . . Scanalyzer . | . . . Garrison Access Hacks . | . . . Unauthorized Hacks 1 | . 1 . Terminals . | . . . Fabricators . | . . . Repair Stations . | . . . Recycling Units 1 | . 1 . Reject 1 | . 1 . Scanalyzers . | . . . Garrison Access . | . . . Data Cores Recovered . | . . . Used . | . . . Hacking Detections 5 | . 5 . Full Trace Events 1 | . 1 . Feedback Events . | . . . Feedback Blocked . | . . . Robot Schematics Acquired . | . . . Robots Built . | . . . Authchips . | . . . Time . | . . . Total Robot Build Rating . | . . . Part Schematics Acquired . | . . . Parts Built . | . . . Authchips . | . . . Time . | . . . Total Part Build Rating . | . . . Parts Repaired . | . . . Time . | . . . Parts Recycled . | . . . Recycled Matter . | . . . Retrieved Matter . | . . . Retrieved Components . | . . . Parts Scanalyzed . | . . . Part Schematics Acquired . | . . . Parts Damaged . | . . . Bothacking | -11 -10 -10 ------------ Run | Yrd Mat Sub Used RIF Installer . | . . . Robots Hacked . | . . . Non-combat . | . . . Combat . | . . . Robot Hacks Applied . | . . . Relay Couplers Released . | . . . Fabnet Peak Effective % . | . . . Robots Rewired . | . . . Allies Hacked . | . . . Hacks Repelled . | . . . Allies | -11 -10 -10 -------- Run | Yrd Mat Sub Total Allies . | . . . Largest Group . | . . . Highest-Rated Group . | . . . Highest-Rated Ally . | . . . Total Orders . | . . . Ally Attacks . | . . . Total Damage . | . . . Kills . | . . . Allies Corrupted . | . . . Allies Melted . | . . . Intel | -11 -10 -10 ------- Run | Yrd Mat Sub Robot Analysis Total 2 | . 2 . Derelict Logs Recovered 1 | . . 1 Drone Launches . | . . . Drone Recoveries . | . . . Exploration | -11 -10 -10 ------------- Run | Yrd Mat Sub Turns Passed 1247 | 3 1098 146 Spaces Moved 639 | 1 608 30 Core . | . . . Treads 294 | 1 292 1 Legs . | . . . Wheels 345 | . 316 29 Hover . | . . . Flight . | . . . Fastest Speed 90 | 160 90 90 Average Speed 122 | 160 123 92 Slowest Speed 160 | 160 160 160 Overloaded Moves . | . . . Propulsion Burnouts . | . . . Robots Hopped . | . . . Cave-ins Triggered . | . . . Exploration Rate (%) 32 | 2 91 4 Regions Visited 2 Branch Regions 1 Pre-discovered Areas 1 | . . 1 Known Exits Taken . | . . . Unknown Exits Taken 2 | 1 1 . Scrap Searched . | . . . Spaces Dug . | . . . Terrain Destroyed . | . . . Melee . | . . . Projectile . | . . . AOE . | . . . Terrain Rammed . | . . . Walls Destroyed . | . . . Machines Disabled . | . . . Actions | -11 -10 -10 --------- Run | Yrd Mat Sub Total 902 | 2 819 81 Wait 116 | . 116 . Move 637 | . 607 30 Hop . | . . . Pick Up 12 | . 12 . Fast Attach 2 | . 2 . Attach 5 | . . 5 Detach . | . . . Swap 10 | 2 5 3 Drop 10 | . 9 1 Fire 96 | . 68 28 Melee 14 | . . 14 Ram . | . . . Kick . | . . . Crush . | . . . Escape Stasis . | . . . Rewire . | . . . Trap . | . . . Miscellaneous . | . . . Route ------- -11/Scrapyard -10/Materials (discovered 4 exits: [*Mat x2] / *Min / [*Sub]) -10/Subcaves History --------- Turn | Location | Event 4 | -11/Scrapyard | Discovered new exit (range 0) 4 | -11/Scrapyard | Entered Materials 317 | -10/Materials | Build established: Mutant 542 | -10/Materials | Discovered new exit (range 6) 725 | -10/Materials | Discovered new exit (range 5) 728 | -10/Materials | Core integrity fell below 50% 887 | -10/Materials | Discovered new exit (range 13) 900 | -10/Materials | Identified exit to Mines 1089 | -10/Materials | Discovered new exit (range 5) 1102 | -10/Materials | Entered Subcaves 1113 | -10/Subcaves | Shifting Twisted Machinery released Mak. Shrapnel Gun 1113 | -10/Subcaves | Shifting Twisted Machinery released Mak. Leg 1115 | -10/Subcaves | A swath of the cavern ceiling suddenly collapsed 1156 | -10/Subcaves | A Subdweller sparked back to life 1156 | -10/Subcaves | A Subdweller sparked back to life 1156 | -10/Subcaves | A Subdweller sparked back to life 1198 | -10/Subcaves | Core integrity fell below 20% 1206 | -10/Subcaves | Lost 5 parts (2n1u2w) 1248 | -10/Subcaves | Destroyed by PA-3EL(R) with Subdweller Laser Last Messages --------------- 01156_ M9-W8L(R) system corrupted by crushing effect. 01156_ M9-W8L(R) knocked back. 01156_ M9-W8L(R) creaks and sparks as it begins to move. 01156_ VT-S66(R) creaks and sparks as it begins to move. 01156_ PA-3EL(R) creaks and sparks as it begins to move. 01163_ Com. Wheel destroyed. 01163_ VT-S66(R) suffers critical hit (Destroy). 01165_ VT-S66(R) affixes Scrap Shield Fragment to Scrap Shield. 01165_ Heat Sink destroyed. 01167_ Wheel destroyed. 01171_ Assault Rifle destroyed. 01172_ VT-S66(R) destroyed. 01172_ Switching to secondary target: PA-3EL(R). 01175_ Mak. Shrapnel Gun destroyed. 01219_ Lgt. Assault Rifle destroyed. 01226_ Lgt. Treads destroyed. 01229_ Sneak attack on M9-W8L(R). 01229_ M9-W8L(R) affixes Scrap Shield Fragment to Scrap Shield. 01238_ Ion Engine destroyed. 01245_ PA-3EL(R) affixes Scrap Shield Fragment to Scrap Shield. Map ----- +----------------------------------------------------+ | ?????????????????????????????????????????????????? | | ?????????????????????????????????????????????????? | | ?????????????????????????????????????????????????? | | ?????????????????????????????????????????????????? | | ????????????????????????????????????#????????????? | | ???????????????????????????????????? ????????????? | | ???????????????????????????????????? ????????????? | | ???????????????????????????####???? #????????????? | | ??????????????????????##### ##??? ????????????? | | ?????????????????????## # #??? ##???????????? | | ????????????????????## ### #???????????? | | ????????????????????# #??? #???????????? | | ????????????????????# ####?? #???????????? | | ????????????????????# # #?? #????????????? | | ????????????????????## #### #????????????? | | ?????????????????????# ## ## #????????????? | | ?????????????????????## ## #????????????? | | ??????????????????????# ## ##????????????? | | ??????????????????????## ## ####### #????????????? | | ???????????????????????######?# ##????????????? | | ??????????????????????????????# #?????????????? | | ??????????????????????????????# #?????????????? | | ????????????????????######